[Event "*** Titled Tuesday Blitz"]
[Site "Chess.com"]
[Date "2021.02.16"]
[Round "3"]
[White "TregubovP"]
[Black "ybruned"]
[Result "1-0"]
[WhiteElo "2526"]
[BlackElo "2315"]
[TimeControl "180+1"]
[EndTime "10:30:50 PST"]
[Termination "TregubovP won by resignation"]

1. e4 {[%clk 0:03:00.9]} 1... b6 {[%clk 0:02:59.5]} 2. d4 {[%clk 0:02:59.1]}
2... Bb7 {[%clk 0:02:59.1]} 3. Bd3 {[%clk 0:02:58.3]} 3... e6 {[%clk 0:02:59.3]}
4. Nf3 {[%clk 0:02:57.5]} 4... d5 {[%clk 0:02:59.5]} 5. e5 {[%clk 0:02:53.7]}
5... c5 {[%clk 0:02:58.9]} 6. c3 {[%clk 0:02:53.7]} 6... Qc8 {[%clk 0:02:59]} 7.
O-O {[%clk 0:02:52.7]} 7... Ba6 {[%clk 0:02:59.2]} 8. Be3 {[%clk 0:02:48.5]}
8... Bxd3 {[%clk 0:02:58.3]} 9. Qxd3 {[%clk 0:02:48.7]} 9... Qa6 {[%clk
0:02:59.2]} 10. Qxa6 {[%clk 0:02:39.4]} 10... Nxa6 {[%clk 0:02:58.5]} 11. c4
{[%clk 0:02:32.8]} 11... dxc4 {[%clk 0:02:10.4]} 12. Nc3 {[%clk 0:02:32.9]}
12... Ne7 {[%clk 0:02:04.1]} 13. dxc5 {[%clk 0:02:25]} 13... Nxc5 {[%clk
0:01:48.1]} 14. Bxc5 {[%clk 0:02:24.5]} 14... bxc5 {[%clk 0:01:47.8]} 15. Rfd1
{[%clk 0:02:01.6]} 15... Nc6 {[%clk 0:01:23.2]} 16. Nb5 {[%clk 0:02:01.4]} 16...
Rc8 {[%clk 0:01:22]} 17. Rac1 {[%clk 0:02:00.7]} 17... a6 {[%clk 0:01:01.3]} 18.
Nd6+ {[%clk 0:01:58]} 18... Bxd6 {[%clk 0:01:00.2]} 19. Rxd6 {[%clk 0:01:58.4]}
19... Ke7 {[%clk 0:00:54.4]} 20. Kf1 {[%clk 0:01:30.8]} 20... Rhd8 {[%clk
0:00:49.3]} 21. Rxd8 {[%clk 0:01:28.3]} 21... Rxd8 {[%clk 0:00:49.5]} 22. Rxc4
{[%clk 0:01:26.7]} 22... Rd5 {[%clk 0:00:50]} 23. Ra4 {[%clk 0:01:25.5]} 23...
a5 {[%clk 0:00:49.4]} 24. h4 {[%clk 0:01:21.4]} 24... h6 {[%clk 0:00:47.9]} 25.
h5 {[%clk 0:01:21]} 25... Nxe5 {[%clk 0:00:37.6]} 26. Nxe5 {[%clk 0:01:18.8]}
26... Rxe5 {[%clk 0:00:38]} 27. Rxa5 {[%clk 0:01:17.3]} 27... Rxh5 {[%clk
0:00:38.6]} 28. Ra7+ {[%clk 0:01:17.3]} 28... Kf6 {[%clk 0:00:37.7]} 29. a4
{[%clk 0:01:16.8]} 29... Rh1+ {[%clk 0:00:38.2]} 30. Ke2 {[%clk 0:01:16.4]}
30... Rb1 {[%clk 0:00:38.6]} 31. Rb7 {[%clk 0:01:16.8]} 31... Ra1 {[%clk
0:00:37.8]} 32. b3 {[%clk 0:01:15.9]} 32... c4 {[%clk 0:00:36.4]} 33. bxc4
{[%clk 0:01:08.7]} 33... Rxa4 {[%clk 0:00:35.1]} 34. Kd3 {[%clk 0:01:08.8]}
34... Ra2 {[%clk 0:00:34.7]} 35. c5 {[%clk 0:01:08.3]} 35... Rxf2 {[%clk
0:00:19.8]} 36. c6 {[%clk 0:01:08.5]} 36... Rf1 {[%clk 0:00:20]} 37. Kc4 {[%clk
0:01:03.1]} 37... Rc1+ {[%clk 0:00:16.1]} 38. Kb5 {[%clk 0:01:03.1]} 38... g5
{[%clk 0:00:16.1]} 39. c7 {[%clk 0:01:02.7]} 39... h5 {[%clk 0:00:15.9]} 40. Kb6
{[%clk 0:01:02.8]} 40... g4 {[%clk 0:00:14.3]} 41. Rb8 {[%clk 0:01:03.2]} 41...
Kg5 {[%clk 0:00:13]} 42. c8=Q {[%clk 0:01:02.5]} 42... Rxc8 {[%clk 0:00:12.1]}
43. Rxc8 {[%clk 0:01:03.4]} 43... h4 {[%clk 0:00:12.5]} 44. Kc5 {[%clk
0:00:59.8]} 44... h3 {[%clk 0:00:12.6]} 45. gxh3 {[%clk 0:00:59.9]} 45... gxh3
{[%clk 0:00:13.5]} 46. Kd4 {[%clk 0:01:00.2]} 46... Kg4 {[%clk 0:00:13]} 47. Ke3
{[%clk 0:00:57.9]} 47... h2 {[%clk 0:00:10.1]} 48. Rg8+ {[%clk 0:00:54.3]} 48...
Kh4 {[%clk 0:00:08.2]} 49. Kf2 {[%clk 0:00:50.8]} 49... h1=Q {[%clk 0:00:07]}
50. Rh8+ {[%clk 0:00:49.8]} 50... Kg5 {[%clk 0:00:07.3]} 51. Rxh1 {[%clk
0:00:50.3]} 51... f5 {[%clk 0:00:08.2]} 52. Kf3 {[%clk 0:00:49.8]} 1-0

[Event "*** Titled Tuesday Blitz"]
[Site "Chess.com"]
[Date "2021.02.16"]
[Round "3"]
[White "erdni1993"]
[Black "Alexander_Zubov"]
[Result "0-1"]
[WhiteElo "2467"]
[BlackElo "2996"]
[TimeControl "180+1"]
[EndTime "10:30:51 PST"]
[Termination "Alexander_Zubov won by resignation"]

1. d4 {[%clk 0:03:00.9]} 1... d5 {[%clk 0:02:58.3]} 2. c4 {[%clk 0:03:01.2]}
2... dxc4 {[%clk 0:02:58]} 3. Nf3 {[%clk 0:03:01]} 3... e6 {[%clk 0:02:56.3]} 4.
e3 {[%clk 0:03:01]} 4... Nf6 {[%clk 0:02:55]} 5. Bxc4 {[%clk 0:03:00.7]} 5... c5
{[%clk 0:02:55.2]} 6. O-O {[%clk 0:02:59.7]} 6... Nc6 {[%clk 0:02:54.3]} 7. Nc3
{[%clk 0:02:58.4]} 7... a6 {[%clk 0:02:53.5]} 8. a4 {[%clk 0:02:57.9]} 8... Be7
{[%clk 0:02:52]} 9. dxc5 {[%clk 0:02:56.3]} 9... Qc7 {[%clk 0:02:51.5]} 10. h3
{[%clk 0:02:50.8]} 10... Bxc5 {[%clk 0:02:49.3]} 11. e4 {[%clk 0:02:43.8]} 11...
O-O {[%clk 0:02:35.2]} 12. Qe2 {[%clk 0:02:37.6]} 12... Nd4 {[%clk 0:02:16.3]}
13. Nxd4 {[%clk 0:02:32]} 13... Bxd4 {[%clk 0:02:17.2]} 14. Bd2 {[%clk 0:02:22]}
14... Bd7 {[%clk 0:02:04.4]} 15. Rac1 {[%clk 0:02:17.7]} 15... Rac8 {[%clk
0:01:59.2]} 16. Bb3 {[%clk 0:02:17.5]} 16... Qb6 {[%clk 0:01:46.5]} 17. Ba2
{[%clk 0:01:32]} 17... Qxb2 {[%clk 0:01:18.2]} 18. Rb1 {[%clk 0:01:29.4]} 18...
Qa3 {[%clk 0:01:18]} 19. Rb3 {[%clk 0:01:24.2]} 19... Qc5 {[%clk 0:01:16.2]} 20.
Rc1 {[%clk 0:01:09.9]} 20... Qe5 {[%clk 0:01:08.8]} 21. Qf3 {[%clk 0:00:38.5]}
21... Bc6 {[%clk 0:00:58.3]} 22. Bf4 {[%clk 0:00:37.8]} 22... Qa5 {[%clk
0:00:54.9]} 23. Qd3 {[%clk 0:00:13]} 23... Rfd8 {[%clk 0:00:47.8]} 24. Qe2
{[%clk 0:00:09.8]} 24... Bxa4 {[%clk 0:00:21.7]} 25. Nxa4 {[%clk 0:00:09]} 25...
Rxc1+ {[%clk 0:00:21.6]} 26. Bxc1 {[%clk 0:00:09.9]} 26... Qxa4 {[%clk
0:00:21.9]} 27. Rxb7 {[%clk 0:00:09.1]} 27... Nxe4 {[%clk 0:00:19.7]} 28. Be3
{[%clk 0:00:06.3]} 28... Nc3 {[%clk 0:00:13.6]} 29. Qd3 {[%clk 0:00:03.1]} 29...
Bf6 {[%clk 0:00:12.5]} 30. Bd4 {[%clk 0:00:01.2]} 30... Qxd4 {[%clk 0:00:11.6]}
31. Qxd4 {[%clk 0:00:01.2]} 31... Bxd4 {[%clk 0:00:11.3]} 32. Bc4 {[%clk
0:00:02.1]} 32... a5 {[%clk 0:00:11.2]} 0-1

[Event "*** Titled Tuesday Blitz"]
[Site "Chess.com"]
[Date "2021.02.16"]
[Round "3"]
[White "Ginger_GM"]
[Black "jcibarra"]
[Result "0-1"]
[WhiteElo "2632"]
[BlackElo "2903"]
[TimeControl "180+1"]
[EndTime "10:30:52 PST"]
[Termination "jcibarra won by resignation"]

1. e4 {[%clk 0:03:00.9]} 1... c5 {[%clk 0:02:56.8]} 2. b4 {[%clk 0:03:00.5]}
2... cxb4 {[%clk 0:02:55.5]} 3. a3 {[%clk 0:03:00.3]} 3... d5 {[%clk 0:02:55.3]}
4. exd5 {[%clk 0:03:00]} 4... Qxd5 {[%clk 0:02:55.5]} 5. Nf3 {[%clk 0:02:59.3]}
5... e5 {[%clk 0:02:49.6]} 6. axb4 {[%clk 0:02:52]} 6... Bxb4 {[%clk 0:02:47.4]}
7. c3 {[%clk 0:02:51.7]} 7... Be7 {[%clk 0:02:27.3]} 8. Na3 {[%clk 0:02:51.1]}
8... Nc6 {[%clk 0:02:17.7]} 9. Nb5 {[%clk 0:02:50.3]} 9... Qd8 {[%clk
0:02:13.2]} 10. d4 {[%clk 0:02:50.1]} 10... exd4 {[%clk 0:01:56.6]} 11. Bf4
{[%clk 0:02:47.3]} 11... Kf8 {[%clk 0:01:38.6]} 12. Bc4 {[%clk 0:02:28.7]} 12...
Bg4 {[%clk 0:01:32.1]} 13. O-O {[%clk 0:02:12.9]} 13... Rc8 {[%clk 0:01:18.2]}
14. Qb3 {[%clk 0:01:38.4]} 14... Bxf3 {[%clk 0:01:14.3]} 15. gxf3 {[%clk
0:01:37.3]} 15... Na5 {[%clk 0:01:05.6]} 16. Rxa5 {[%clk 0:01:35.9]} 16... Qxa5
{[%clk 0:01:06.5]} 17. Bxf7 {[%clk 0:01:33.8]} 17... Qb6 {[%clk 0:00:57.1]} 18.
Bh5 {[%clk 0:00:38.5]} 18... g6 {[%clk 0:00:50.5]} 19. Bg4 {[%clk 0:00:38.6]}
19... Rc5 {[%clk 0:00:40]} 20. c4 {[%clk 0:00:21.6]} 20... a6 {[%clk 0:00:38.1]}
21. Qd3 {[%clk 0:00:21.2]} 21... axb5 {[%clk 0:00:35.9]} 22. Qxd4 {[%clk
0:00:21.7]} 22... Qf6 {[%clk 0:00:34.3]} 23. Qe3 {[%clk 0:00:18]} 23... h5
{[%clk 0:00:32.8]} 24. Bh3 {[%clk 0:00:18]} 24... Kg7 {[%clk 0:00:31]} 25. Re1
{[%clk 0:00:17.5]} 25... bxc4 {[%clk 0:00:29.1]} 26. Be6 {[%clk 0:00:11]} 26...
Nh6 {[%clk 0:00:25.9]} 27. Bd7 {[%clk 0:00:06.1]} 27... Nf5 {[%clk 0:00:22.5]}
28. Bxf5 {[%clk 0:00:05.1]} 28... Rxf5 {[%clk 0:00:23.4]} 29. Qxe7+ {[%clk
0:00:04.4]} 29... Qxe7 {[%clk 0:00:23.1]} 30. Rxe7+ {[%clk 0:00:04.8]} 30... Kf6
{[%clk 0:00:22.7]} 31. Re4 {[%clk 0:00:05.3]} 31... Rc8 {[%clk 0:00:20.2]} 32.
Be3 {[%clk 0:00:04.5]} 32... Rxf3 {[%clk 0:00:19]} 33. Bd4+ {[%clk 0:00:04.2]}
33... Kf7 {[%clk 0:00:19.4]} 34. Kg2 {[%clk 0:00:04.3]} 34... Rd3 {[%clk
0:00:19.3]} 35. Rf4+ {[%clk 0:00:02.8]} 35... Ke6 {[%clk 0:00:19.5]} 36. Rf6+
{[%clk 0:00:02.9]} 36... Kd5 {[%clk 0:00:20]} 37. Be3 {[%clk 0:00:03.4]} 37...
Rxe3 {[%clk 0:00:19.4]} 38. fxe3 {[%clk 0:00:03.3]} 38... c3 {[%clk 0:00:19.8]}
0-1

[Event "*** Titled Tuesday Blitz"]
[Site "Chess.com"]
[Date "2021.02.16"]
[Round "3"]
[White "GMJustin"]
[Black "AungTZ"]
[Result "1-0"]
[WhiteElo "2315"]
[BlackElo "2022"]
[TimeControl "180+1"]
[EndTime "10:30:53 PST"]
[Termination "GMJustin won on time"]

1. d4 {[%clk 0:02:58.5]} 1... Nf6 {[%clk 0:02:26.6]} 2. Bg5 {[%clk 0:02:57.5]}
2... Ne4 {[%clk 0:02:26.1]} 3. h4 {[%clk 0:02:56.2]} 3... d5 {[%clk 0:02:27]} 4.
Nd2 {[%clk 0:02:53.9]} 4... h6 {[%clk 0:02:26.3]} 5. Nxe4 {[%clk 0:02:49.5]}
5... dxe4 {[%clk 0:02:18.9]} 6. Bf4 {[%clk 0:02:49.5]} 6... Nc6 {[%clk
0:02:17.7]} 7. e3 {[%clk 0:02:43.8]} 7... Bf5 {[%clk 0:02:09.8]} 8. Bb5 {[%clk
0:02:07.8]} 8... e6 {[%clk 0:01:49.9]} 9. g4 {[%clk 0:02:01.5]} 9... Bg6 {[%clk
0:01:47.6]} 10. h5 {[%clk 0:02:00.8]} 10... Bh7 {[%clk 0:01:47.5]} 11. Ne2
{[%clk 0:01:57.6]} 11... Bd6 {[%clk 0:01:44.8]} 12. c4 {[%clk 0:01:38.1]} 12...
a6 {[%clk 0:01:40.7]} 13. Bxc6+ {[%clk 0:01:35]} 13... bxc6 {[%clk 0:01:40.7]}
14. c5 {[%clk 0:01:31.5]} 14... Bxf4 {[%clk 0:01:24.2]} 15. Nxf4 {[%clk
0:01:31.5]} 15... O-O {[%clk 0:01:17.1]} 16. Qa4 {[%clk 0:01:28.3]} 16... Qg5
{[%clk 0:01:08.6]} 17. O-O-O {[%clk 0:01:20.5]} 17... e5 {[%clk 0:01:07.6]} 18.
dxe5 {[%clk 0:01:11.8]} 18... Qxe5 {[%clk 0:01:06.7]} 19. Qxc6 {[%clk 0:01:11]}
19... Rab8 {[%clk 0:01:03.5]} 20. Rd2 {[%clk 0:01:09.9]} 20... Rb5 {[%clk
0:00:56.1]} 21. Rc2 {[%clk 0:00:57.1]} 21... Rfb8 {[%clk 0:00:54.6]} 22. Qd5
{[%clk 0:00:49]} 22... Qe7 {[%clk 0:00:46.7]} 23. Rd1 {[%clk 0:00:43.2]} 23...
Kh8 {[%clk 0:00:42.7]} 24. Rd4 {[%clk 0:00:31.1]} 24... Qh4 {[%clk 0:00:28.1]}
25. b3 {[%clk 0:00:13.2]} 25... Qxg4 {[%clk 0:00:15.5]} 26. Qxf7 {[%clk
0:00:12]} 26... a5 {[%clk 0:00:10.5]} 27. Ng6+ {[%clk 0:00:11.1]} 27... Bxg6
{[%clk 0:00:10.4]} 28. hxg6 {[%clk 0:00:11]} 28... Qg1+ {[%clk 0:00:04.1]} 29.
Kb2 {[%clk 0:00:10.6]} 29... Qg5 {[%clk 0:00:04.4]} 30. Rd7 {[%clk 0:00:09.3]}
30... Qe5+ {[%clk 0:00:03.4]} 31. Ka3 {[%clk 0:00:05.3]} 31... a4 {[%clk
0:00:04.3]} 32. Rcd2 {[%clk 0:00:04.5]} 1-0

[Event "*** Titled Tuesday Blitz"]
[Site "Chess.com"]
[Date "2021.02.16"]
[Round "3"]
[White "Stewie_89"]
[Black "Fandorine"]
[Result "0-1"]
[WhiteElo "2609"]
[BlackElo "2849"]
[TimeControl "180+1"]
[EndTime "10:30:54 PST"]
[Termination "Fandorine won on time"]

1. e4 {[%clk 0:03:00.9]} 1... c5 {[%clk 0:03:00.1]} 2. Nf3 {[%clk 0:03:00.6]}
2... e6 {[%clk 0:03:00.6]} 3. b3 {[%clk 0:03:00.4]} 3... Nc6 {[%clk 0:02:52.8]}
4. Bb2 {[%clk 0:02:59.9]} 4... d6 {[%clk 0:02:53.1]} 5. Bb5 {[%clk 0:02:58.9]}
5... Bd7 {[%clk 0:02:53.2]} 6. O-O {[%clk 0:02:58.2]} 6... Nf6 {[%clk
0:02:53.2]} 7. Re1 {[%clk 0:02:58]} 7... Be7 {[%clk 0:02:52.8]} 8. a4 {[%clk
0:02:54.9]} 8... O-O {[%clk 0:02:52.6]} 9. d4 {[%clk 0:02:50.7]} 9... cxd4
{[%clk 0:02:50.7]} 10. Nxd4 {[%clk 0:02:50.9]} 10... a6 {[%clk 0:02:49.1]} 11.
Bxc6 {[%clk 0:02:43.6]} 11... Bxc6 {[%clk 0:02:49.3]} 12. Nxc6 {[%clk 0:02:43]}
12... bxc6 {[%clk 0:02:49.7]} 13. e5 {[%clk 0:02:43.5]} 13... dxe5 {[%clk
0:02:48.7]} 14. Bxe5 {[%clk 0:02:39.9]} 14... Nd5 {[%clk 0:02:41.6]} 15. Na3
{[%clk 0:02:19.3]} 15... Bb4 {[%clk 0:02:36.5]} 16. Re4 {[%clk 0:02:02.1]} 16...
f6 {[%clk 0:02:08.9]} 17. Bb2 {[%clk 0:01:53.2]} 17... e5 {[%clk 0:02:09]} 18.
Qd3 {[%clk 0:01:39.1]} 18... Bc5 {[%clk 0:01:41.7]} 19. Nc4 {[%clk 0:01:30]}
19... Nf4 {[%clk 0:01:23]} 20. Qf3 {[%clk 0:01:18.3]} 20... Qd5 {[%clk
0:01:10.9]} 21. Rd1 {[%clk 0:01:12.8]} 21... Qf7 {[%clk 0:01:10.6]} 22. Ba3
{[%clk 0:00:36]} 22... Bxa3 {[%clk 0:01:06.2]} 23. Nxa3 {[%clk 0:00:35.3]} 23...
Rad8 {[%clk 0:01:01.3]} 24. Ree1 {[%clk 0:00:34.8]} 24... Rd5 {[%clk 0:00:49.1]}
25. g3 {[%clk 0:00:32.7]} 25... Nh3+ {[%clk 0:00:46.3]} 26. Kg2 {[%clk
0:00:32.8]} 26... Ng5 {[%clk 0:00:46.7]} 27. Qc3 {[%clk 0:00:32]} 27... Qd7
{[%clk 0:00:43.3]} 28. Rd3 {[%clk 0:00:28.6]} 28... e4 {[%clk 0:00:37.5]} 29.
Rxd5 {[%clk 0:00:27.6]} 29... Qh3+ {[%clk 0:00:37.1]} 30. Kh1 {[%clk 0:00:09.4]}
30... Nf3 {[%clk 0:00:32.3]} 31. Rh5 {[%clk 0:00:09.2]} 31... Qxh5 {[%clk
0:00:30.1]} 32. h4 {[%clk 0:00:10.1]} 32... Nxe1 {[%clk 0:00:29.4]} 33. Qxe1
{[%clk 0:00:11]} 33... Qf3+ {[%clk 0:00:29.3]} 34. Kh2 {[%clk 0:00:10.7]} 34...
f5 {[%clk 0:00:29.8]} 35. Nc4 {[%clk 0:00:09.8]} 35... f4 {[%clk 0:00:30.3]} 36.
Kg1 {[%clk 0:00:03.4]} 36... e3 {[%clk 0:00:28.4]} 37. fxe3 {[%clk 0:00:02.8]}
37... fxg3 {[%clk 0:00:28.5]} 38. Ne5 {[%clk 0:00:01.9]} 38... Qf5 {[%clk
0:00:26.7]} 39. Qf2 {[%clk 0:00:02.8]} 39... Qxf2+ {[%clk 0:00:26.2]} 0-1

[Event "*** Titled Tuesday Blitz"]
[Site "Chess.com"]
[Date "2021.02.16"]
[Round "3"]
[White "JoakimVonAnd"]
[Black "NemtsevIgor"]
[Result "1-0"]
[WhiteElo "2544"]
[BlackElo "2358"]
[TimeControl "180+1"]
[EndTime "10:30:55 PST"]
[Termination "JoakimVonAnd won on time"]

1. d4 {[%clk 0:03:00.9]} 1... Nf6 {[%clk 0:02:59.1]} 2. c4 {[%clk 0:02:59.1]}
2... g6 {[%clk 0:02:58.6]} 3. Nc3 {[%clk 0:02:57]} 3... Bg7 {[%clk 0:02:58.7]}
4. e4 {[%clk 0:02:57]} 4... d6 {[%clk 0:02:58.8]} 5. Be2 {[%clk 0:02:54.7]} 5...
O-O {[%clk 0:02:57.9]} 6. Be3 {[%clk 0:02:54.8]} 6... e5 {[%clk 0:02:52.6]} 7.
d5 {[%clk 0:02:53.8]} 7... c6 {[%clk 0:02:43.8]} 8. g4 {[%clk 0:02:52.2]} 8...
cxd5 {[%clk 0:02:43.6]} 9. cxd5 {[%clk 0:02:52.9]} 9... a6 {[%clk 0:02:42.3]}
10. g5 {[%clk 0:02:43.5]} 10... Nh5 {[%clk 0:02:29.5]} 11. Bxh5 {[%clk
0:02:38.9]} 11... gxh5 {[%clk 0:02:29.7]} 12. Qxh5 {[%clk 0:02:39.8]} 12... b5
{[%clk 0:02:26.8]} 13. Qd1 {[%clk 0:02:11]} 13... f5 {[%clk 0:02:22.9]} 14. gxf6
{[%clk 0:02:10.3]} 14... Qxf6 {[%clk 0:02:22.6]} 15. Qd2 {[%clk 0:02:09.2]}
15... Bg4 {[%clk 0:02:13.7]} 16. Nge2 {[%clk 0:02:04.2]} 16... Nd7 {[%clk
0:02:00.8]} 17. Rg1 {[%clk 0:01:55.5]} 17... Bh5 {[%clk 0:01:47.2]} 18. Ng3
{[%clk 0:01:51.2]} 18... Bg6 {[%clk 0:01:43.8]} 19. Bg5 {[%clk 0:01:38.9]} 19...
Qf7 {[%clk 0:01:30.7]} 20. h4 {[%clk 0:01:35.1]} 20... Nc5 {[%clk 0:01:25.2]}
21. b4 {[%clk 0:01:30.6]} 21... Na4 {[%clk 0:01:18.6]} 22. Nxa4 {[%clk 0:01:27]}
22... bxa4 {[%clk 0:01:19]} 23. h5 {[%clk 0:00:59.5]} 23... Bxh5 {[%clk
0:01:13.1]} 24. Nxh5 {[%clk 0:01:00.4]} 24... Qxh5 {[%clk 0:01:13]} 25. Be7
{[%clk 0:00:59.3]} 25... Rf4 {[%clk 0:00:56.9]} 26. Qe3 {[%clk 0:00:38.4]} 26...
Rc8 {[%clk 0:00:32.8]} 27. Bg5 {[%clk 0:00:18.5]} 27... Rc4 {[%clk 0:00:26.4]}
28. Bxf4 {[%clk 0:00:16.3]} 28... exf4 {[%clk 0:00:26.7]} 29. Qxf4 {[%clk
0:00:14.8]} 29... Kh8 {[%clk 0:00:22.6]} 30. Rc1 {[%clk 0:00:12.8]} 30... Rxc1+
{[%clk 0:00:14.5]} 31. Qxc1 {[%clk 0:00:13.7]} 31... Qe5 {[%clk 0:00:14.3]} 32.
Qc8+ {[%clk 0:00:13.1]} 1-0

[Event "*** Titled Tuesday Blitz"]
[Site "Chess.com"]
[Date "2021.02.16"]
[Round "3"]
[White "goldihouse"]
[Black "MaxLeto"]
[Result "1-0"]
[WhiteElo "2537"]
[BlackElo "2331"]
[TimeControl "180+1"]
[EndTime "10:30:56 PST"]
[Termination "goldihouse won by resignation"]

1. c4 {[%clk 0:03:00.9]} 1... e5 {[%clk 0:02:59.5]} 2. g3 {[%clk 0:03:01.8]}
2... Nc6 {[%clk 0:02:56.4]} 3. Bg2 {[%clk 0:03:01.1]} 3... Nf6 {[%clk
0:02:56.5]} 4. Nc3 {[%clk 0:03:01.7]} 4... Bc5 {[%clk 0:02:55.5]} 5. a3 {[%clk
0:03:01.4]} 5... a5 {[%clk 0:02:51.9]} 6. e3 {[%clk 0:03:00.9]} 6... O-O {[%clk
0:02:52.3]} 7. Nge2 {[%clk 0:03:01.5]} 7... Re8 {[%clk 0:02:52.5]} 8. O-O {[%clk
0:03:01.5]} 8... e4 {[%clk 0:02:46.9]} 9. d3 {[%clk 0:02:56.8]} 9... exd3 {[%clk
0:02:44]} 10. Qxd3 {[%clk 0:02:57.7]} 10... Ne5 {[%clk 0:02:42.4]} 11. Qc2
{[%clk 0:02:57.8]} 11... d6 {[%clk 0:02:38.1]} 12. b3 {[%clk 0:02:56.5]} 12...
c6 {[%clk 0:02:16.3]} 13. h3 {[%clk 0:02:54.3]} 13... Bd7 {[%clk 0:02:02.5]} 14.
Bd2 {[%clk 0:02:52.1]} 14... Qc8 {[%clk 0:02:01.6]} 15. Kh2 {[%clk 0:02:52]}
15... Bf5 {[%clk 0:01:58.4]} 16. e4 {[%clk 0:02:51.3]} 16... Bd7 {[%clk
0:01:36]} 17. f4 {[%clk 0:02:50.6]} 17... Ng6 {[%clk 0:01:35.5]} 18. Na4 {[%clk
0:02:40.9]} 18... Ba7 {[%clk 0:01:34.2]} 19. Bxa5 {[%clk 0:02:36.5]} 19... b5
{[%clk 0:01:22.1]} 20. Nb2 {[%clk 0:02:18]} 20... bxc4 {[%clk 0:01:06]} 21. Nxc4
{[%clk 0:02:17.2]} 21... Qb8 {[%clk 0:01:06.2]} 22. Bc3 {[%clk 0:02:13.1]} 22...
d5 {[%clk 0:00:55.9]} 23. exd5 {[%clk 0:02:10.7]} 23... Nxd5 {[%clk 0:00:55.8]}
24. Rae1 {[%clk 0:01:39.5]} 24... Nxc3 {[%clk 0:00:44.7]} 25. Qxc3 {[%clk
0:01:39.4]} 25... Ne7 {[%clk 0:00:36.3]} 26. Ne5 {[%clk 0:01:31.8]} 26... Qb7
{[%clk 0:00:28]} 27. Nd4 {[%clk 0:01:28]} 27... Nd5 {[%clk 0:00:25.8]} 28. Qc4
{[%clk 0:01:21.2]} 28... Bxd4 {[%clk 0:00:20.3]} 29. Qxd4 {[%clk 0:01:22.1]}
29... Rxa3 {[%clk 0:00:20.7]} 30. Nxc6 {[%clk 0:00:53.8]} 30... Rxe1 {[%clk
0:00:11.6]} 31. Rxe1 {[%clk 0:00:54.7]} 31... Bxc6 {[%clk 0:00:08.4]} 32. Bxd5
{[%clk 0:00:53.7]} 32... Ra2+ {[%clk 0:00:08]} 33. Kg1 {[%clk 0:00:53.7]} 33...
Ra8 {[%clk 0:00:03.4]} 34. Rd1 {[%clk 0:00:44.1]} 34... Bxd5 {[%clk 0:00:03.1]}
35. Qxd5 {[%clk 0:00:45]} 35... Qa7+ {[%clk 0:00:03.4]} 36. Qd4 {[%clk
0:00:44.7]} 36... h6 {[%clk 0:00:02]} 37. Qxa7 {[%clk 0:00:44.2]} 37... Rxa7
{[%clk 0:00:02.9]} 38. Rb1 {[%clk 0:00:44.1]} 38... Rb7 {[%clk 0:00:02]} 39. Kf2
{[%clk 0:00:44.3]} 39... Rb5 {[%clk 0:00:02.9]} 40. Ke3 {[%clk 0:00:44.6]} 40...
f5 {[%clk 0:00:03.4]} 41. Kd4 {[%clk 0:00:44.8]} 41... Kf7 {[%clk 0:00:03.2]}
42. b4 {[%clk 0:00:45.2]} 42... Ke6 {[%clk 0:00:03.5]} 43. Kc4 {[%clk 0:00:45]}
43... Rb8 {[%clk 0:00:03.4]} 44. Re1+ {[%clk 0:00:45.1]} 44... Kd6 {[%clk
0:00:03.8]} 45. Re5 {[%clk 0:00:45.9]} 45... g6 {[%clk 0:00:04.1]} 46. b5 {[%clk
0:00:45.4]} 46... Rc8+ {[%clk 0:00:04.3]} 47. Kd4 {[%clk 0:00:44.1]} 47... Rc1
{[%clk 0:00:05.2]} 48. Rd5+ {[%clk 0:00:44.3]} 48... Kc7 {[%clk 0:00:05.5]} 49.
Rc5+ {[%clk 0:00:44.5]} 49... Kb7 {[%clk 0:00:05.4]} 50. Rxc1 {[%clk 0:00:43.5]}
1-0

[Event "*** Titled Tuesday Blitz"]
[Site "Chess.com"]
[Date "2021.02.16"]
[Round "3"]
[White "Logman74"]
[Black "LamaChampetre"]
[Result "1-0"]
[WhiteElo "2384"]
[BlackElo "2209"]
[TimeControl "180+1"]
[EndTime "10:30:58 PST"]
[Termination "Logman74 won on time"]

1. e4 {[%clk 0:03:00.9]} 1... c5 {[%clk 0:02:59.7]} 2. Nf3 {[%clk 0:03:01.2]}
2... g6 {[%clk 0:02:58.2]} 3. c3 {[%clk 0:03:00.4]} 3... d5 {[%clk 0:02:57.7]}
4. d4 {[%clk 0:03:01.1]} 4... dxe4 {[%clk 0:02:56]} 5. Ne5 {[%clk 0:02:54.1]}
5... cxd4 {[%clk 0:02:50.3]} 6. cxd4 {[%clk 0:02:51.1]} 6... Nf6 {[%clk
0:02:43.2]} 7. Bc4 {[%clk 0:02:44.5]} 7... e6 {[%clk 0:02:26.7]} 8. O-O {[%clk
0:02:43.1]} 8... Bg7 {[%clk 0:02:25.6]} 9. Nc3 {[%clk 0:02:41.6]} 9... O-O
{[%clk 0:02:16.2]} 10. Bg5 {[%clk 0:02:40.6]} 10... Qc7 {[%clk 0:01:42.9]} 11.
Bb3 {[%clk 0:02:30.6]} 11... Nc6 {[%clk 0:01:24.5]} 12. Bf4 {[%clk 0:02:13.2]}
12... Qb6 {[%clk 0:01:13.7]} 13. Nxc6 {[%clk 0:02:03.8]} 13... Qxc6 {[%clk
0:01:02.1]} 14. Rc1 {[%clk 0:02:03.1]} 14... Qb6 {[%clk 0:00:50.4]} 15. Re1
{[%clk 0:01:57.3]} 15... Bd7 {[%clk 0:00:43.2]} 16. Nxe4 {[%clk 0:01:54.1]}
16... Nxe4 {[%clk 0:00:41.3]} 17. Rxe4 {[%clk 0:01:54.8]} 17... Bc6 {[%clk
0:00:40.5]} 18. Re1 {[%clk 0:01:28.1]} 18... Qxd4 {[%clk 0:00:35.2]} 19. Rc4
{[%clk 0:01:18.8]} 19... Qxb2 {[%clk 0:00:23.1]} 20. Bc1 {[%clk 0:01:18.2]}
20... Qf6 {[%clk 0:00:19.3]} 21. Rc2 {[%clk 0:01:10.5]} 21... Rad8 {[%clk
0:00:17]} 22. Qe2 {[%clk 0:01:10.4]} 22... Qf5 {[%clk 0:00:16]} 23. Ba3 {[%clk
0:01:06.8]} 23... Rfe8 {[%clk 0:00:15.3]} 24. Rc5 {[%clk 0:01:05.6]} 24... Qf4
{[%clk 0:00:12.3]} 25. Rc4 {[%clk 0:01:00]} 25... Qf5 {[%clk 0:00:11.1]} 26. Bc2
{[%clk 0:00:54.7]} 26... Qg5 {[%clk 0:00:09.6]} 27. Rg4 {[%clk 0:00:51.5]} 27...
Qd5 {[%clk 0:00:09.4]} 28. Rg3 {[%clk 0:00:47.8]} 28... Qd2 {[%clk 0:00:09.1]}
29. h4 {[%clk 0:00:39.9]} 29... Qxe2 {[%clk 0:00:08.4]} 30. Rxe2 {[%clk
0:00:40.1]} 30... Bb5 {[%clk 0:00:08.6]} 31. Re1 {[%clk 0:00:37.8]} 31... Rd2
{[%clk 0:00:08.5]} 32. Bb3 {[%clk 0:00:35.2]} 32... Bd4 {[%clk 0:00:08.2]} 33.
Rf3 {[%clk 0:00:24.3]} 33... Bc6 {[%clk 0:00:08.2]} 34. Rf4 {[%clk 0:00:23.8]}
34... Kg7 {[%clk 0:00:05.8]} 35. Bc1 {[%clk 0:00:20.1]} 35... Rd3 {[%clk
0:00:03.6]} 36. Bc4 {[%clk 0:00:18]} 1-0